{"text_format":"3","workbook":"xlsx","n_sheets":4,"sheets":["交互自动计算规则","Sheet1","Sheet2","Sheet3"],"read":"whole","date_system":"1900"}

{"sheet":"交互自动计算规则","index":0,"n_rows":29,"n_cols":16,"rows_kept":29,"merged":[[28,0,28,11]]}
[null,"任务开始计算默认值","保存影像质量（PET-CT不能融合）","保存肝脏状态","保存脾尖位置","保存脾底位置","保存脾脏评估","测量肝脏血池","测量纵膈血池","二维页面保存病灶","融合页面保存病灶","删除病灶","保存FDG-PET评估","分裂病灶","融合病灶"]
["是否存在Pet","√",{"$nulls":13},{"$f":"\",ComputationTriggerList=new List<ComputationTrigger>(){ \"&IF(B2=\"√\",\"ComputationTrigger.InitialCalculation,\",\"\")&\" \"&IF(C2=\"√\",\"ComputationTrigger.ImageQuality,\",\"\")&\" \"&IF(D2=\"√\",\"ComputationTrigger.LiverStatus,\",\"\")&\"\"&IF(E2=\"√\",\"ComputationTrigger.SplenicApexPosition,\",\"\")&\"\"&IF(F2=\"√\",\"ComputationTrigger.PositionSpleenFloor,\",\"\")&\"\"&IF(G2=\"√\",\"ComputationTrigger.SplenicEvaluation,\",\"\")&\"\"&IF(H2=\"√\",\"ComputationTrigger.LiverBloodPool,\",\"\")&\"\"&IF(I2=\"√\",\"ComputationTrigger.MediastinalPool,\",\"\")&\"\"&IF(J2=\"√\",\"ComputationTrigger.CTSave,\",\"\")&\"\"&IF(K2=\"√\",\"ComputationTrigger.MergeSave,\",\"\")&\"\"&IF(L2=\"√\",\"ComputationTrigger.RemoveLesion,\",\"\")&\"\"&IF(M2=\"√\",\"ComputationTrigger.PDGPET,\",\"\")&\"\"&IF(N2=\"√\",\"ComputationTrigger.SplitLesions,\",\"\")&\"\"&IF(O2=\"√\",\"ComputationTrigger.MergeLesion,\",\"\")&\"}\"","v":",ComputationTriggerList=new List<ComputationTrigger>(){ ComputationTrigger.InitialCalculation,  }"}]
["垂直径乘积之和（SPD）","√",{"$nulls":7},"√",null,"√",{"$nulls":3},{"$f":"\",ComputationTriggerList=new List<ComputationTrigger>(){ \"&IF(B3=\"√\",\"ComputationTrigger.InitialCalculation,\",\"\")&\" \"&IF(C3=\"√\",\"ComputationTrigger.ImageQuality,\",\"\")&\" \"&IF(D3=\"√\",\"ComputationTrigger.LiverStatus,\",\"\")&\"\"&IF(E3=\"√\",\"ComputationTrigger.SplenicApexPosition,\",\"\")&\"\"&IF(F3=\"√\",\"ComputationTrigger.PositionSpleenFloor,\",\"\")&\"\"&IF(G3=\"√\",\"ComputationTrigger.SplenicEvaluation,\",\"\")&\"\"&IF(H3=\"√\",\"ComputationTrigger.LiverBloodPool,\",\"\")&\"\"&IF(I3=\"√\",\"ComputationTrigger.MediastinalPool,\",\"\")&\"\"&IF(J3=\"√\",\"ComputationTrigger.CTSave,\",\"\")&\"\"&IF(K3=\"√\",\"ComputationTrigger.MergeSave,\",\"\")&\"\"&IF(L3=\"√\",\"ComputationTrigger.RemoveLesion,\",\"\")&\"\"&IF(M3=\"√\",\"ComputationTrigger.PDGPET,\",\"\")&\"\"&IF(N3=\"√\",\"ComputationTrigger.SplitLesions,\",\"\")&\"\"&IF(O3=\"√\",\"ComputationTrigger.MergeLesion,\",\"\")&\"}\"","v":",ComputationTriggerList=new List<ComputationTrigger>(){ ComputationTrigger.InitialCalculation,  ComputationTrigger.CTSave,ComputationTrigger.RemoveLesion,}"}]
["与基线相比SPD变化的百分比","√",{"$nulls":7},"√",null,"√",{"$nulls":3},",ComputationTriggerList=new List<ComputationTrigger>(){ ComputationTrigger.InitialCalculation,  ComputationTrigger.CTSave,ComputationTrigger.RemoveLesion,}"]
["脾脏垂直径",{"$nulls":3},"√","√",{"$nulls":9},",ComputationTriggerList=new List<ComputationTrigger>(){   ComputationTrigger.SplenicApexPosition,ComputationTrigger.PositionSpleenFloor,}"]
["与基线相比脾肿大增加的百分比","√",null,null,"√","√",{"$nulls":9},",ComputationTriggerList=new List<ComputationTrigger>(){ ComputationTrigger.InitialCalculation,  ComputationTrigger.SplenicApexPosition,ComputationTrigger.PositionSpleenFloor,}"]
["与最低点相比脾脏垂直径长度的增加值","√",null,null,"√","√",{"$nulls":9},",ComputationTriggerList=new List<ComputationTrigger>(){ ComputationTrigger.InitialCalculation,  ComputationTrigger.SplenicApexPosition,ComputationTrigger.PositionSpleenFloor,}"]
["与基线相比脾垂直径变化值","√",null,null,"√","√",{"$nulls":9},",ComputationTriggerList=new List<ComputationTrigger>(){ ComputationTrigger.InitialCalculation,  ComputationTrigger.SplenicApexPosition,ComputationTrigger.PositionSpleenFloor,}"]
["脾肿垂直径最低点访视","√",null,null,"√","√",{"$nulls":9},",ComputationTriggerList=new List<ComputationTrigger>(){ ComputationTrigger.InitialCalculation,  ComputationTrigger.SplenicApexPosition,ComputationTrigger.PositionSpleenFloor,}"]
["计算脾脏状态",{"$nulls":3},"√","√",{"$nulls":9},",ComputationTriggerList=new List<ComputationTrigger>(){   ComputationTrigger.SplenicApexPosition,ComputationTrigger.PositionSpleenFloor,}"]
["计算脾脏评估","√",null,null,"√","√","√",{"$nulls":8},",ComputationTriggerList=new List<ComputationTrigger>(){ ComputationTrigger.InitialCalculation,  ComputationTrigger.SplenicApexPosition,ComputationTrigger.PositionSpleenFloor,ComputationTrigger.SplenicEvaluation,}"]
["靶病灶评估","√",{"$nulls":7},"√","√","√",null,null,"√",",ComputationTriggerList=new List<ComputationTrigger>(){ ComputationTrigger.InitialCalculation,  ComputationTrigger.CTSave,ComputationTrigger.MergeSave,ComputationTrigger.RemoveLesion,ComputationTrigger.MergeLesion,}"]
["非靶病灶评估","√",{"$nulls":7},"√","√","√",{"$nulls":3},",ComputationTriggerList=new List<ComputationTrigger>(){ ComputationTrigger.InitialCalculation,  ComputationTrigger.CTSave,ComputationTrigger.MergeSave,ComputationTrigger.RemoveLesion,}"]
["新病灶评估","√",{"$nulls":7},"√","√","√",{"$nulls":3},",ComputationTriggerList=new List<ComputationTrigger>(){ ComputationTrigger.InitialCalculation,  ComputationTrigger.CTSave,ComputationTrigger.MergeSave,ComputationTrigger.RemoveLesion,}"]
["计算肝脏评估","√",null,"√",{"$nulls":11},",ComputationTriggerList=new List<ComputationTrigger>(){ ComputationTrigger.InitialCalculation,  ComputationTrigger.LiverStatus,}"]
["骨髓中是否存在局灶性 FDG亲和病灶的证据","√","√",{"$nulls":12},",ComputationTriggerList=new List<ComputationTrigger>(){ ComputationTrigger.InitialCalculation, ComputationTrigger.ImageQuality, }"]
["CT/MRI评估结果","√",null,"√","√","√","√",null,null,"√","√","√",null,null,"√",",ComputationTriggerList=new List<ComputationTrigger>(){ ComputationTrigger.InitialCalculation,  ComputationTrigger.LiverStatus,ComputationTrigger.SplenicApexPosition,ComputationTrigger.PositionSpleenFloor,ComputationTrigger.SplenicEvaluation,ComputationTrigger.CTSave,ComputationTrigger.MergeSave,ComputationTrigger.RemoveLesion,ComputationTrigger.MergeLesion,}"]
["PET 5PS评分","√","√",{"$nulls":4},"√","√",null,"√","√",{"$nulls":3},",ComputationTriggerList=new List<ComputationTrigger>(){ ComputationTrigger.InitialCalculation, ComputationTrigger.ImageQuality, ComputationTrigger.LiverBloodPool,ComputationTrigger.MediastinalPool,ComputationTrigger.MergeSave,ComputationTrigger.RemoveLesion,}"]
["修改PET 5PS评分备注",{"$nulls":6},"√","√",null,"√","√",{"$nulls":3},",ComputationTriggerList=new List<ComputationTrigger>(){   ComputationTrigger.LiverBloodPool,ComputationTrigger.MediastinalPool,ComputationTrigger.MergeSave,ComputationTrigger.RemoveLesion,}"]
["与基线相比摄取值变化","√","√",{"$nulls":4},"√","√",null,"√","√",{"$nulls":3},",ComputationTriggerList=new List<ComputationTrigger>(){ ComputationTrigger.InitialCalculation, ComputationTrigger.ImageQuality, ComputationTrigger.LiverBloodPool,ComputationTrigger.MediastinalPool,ComputationTrigger.MergeSave,ComputationTrigger.RemoveLesion,}"]
["FDG-PET 评估结果","√","√",{"$nulls":4},"√","√",null,"√","√","√",null,null,",ComputationTriggerList=new List<ComputationTrigger>(){ ComputationTrigger.InitialCalculation, ComputationTrigger.ImageQuality, ComputationTrigger.LiverBloodPool,ComputationTrigger.MediastinalPool,ComputationTrigger.MergeSave,ComputationTrigger.RemoveLesion,ComputationTrigger.PDGPET,}"]
["上一次 FDG-PET 评估结果","√",{"$nulls":8},"√","√",{"$nulls":3},",ComputationTriggerList=new List<ComputationTrigger>(){ ComputationTrigger.InitialCalculation,  ComputationTrigger.MergeSave,ComputationTrigger.RemoveLesion,}"]
["影像学整体肿瘤评估","√","√","√","√","√","√","√","√","√","√","√","√",null,"√",",ComputationTriggerList=new List<ComputationTrigger>(){ ComputationTrigger.InitialCalculation, ComputationTrigger.ImageQuality, ComputationTrigger.LiverStatus,ComputationTrigger.SplenicApexPosition,ComputationTrigger.PositionSpleenFloor,ComputationTrigger.SplenicEvaluation,ComputationTrigger.LiverBloodPool,ComputationTrigger.MediastinalPool,ComputationTrigger.CTSave,ComputationTrigger.MergeSave,ComputationTrigger.RemoveLesion,ComputationTrigger.PDGPET,ComputationTrigger.MergeLesion,}"]
["病灶最大的SUVmax",{"$nulls":9},"√","√",{"$nulls":3},",ComputationTriggerList=new List<ComputationTrigger>(){   ComputationTrigger.MergeSave,ComputationTrigger.RemoveLesion,}"]
["SUVmax所在病灶",{"$nulls":9},"√","√",{"$nulls":3},",ComputationTriggerList=new List<ComputationTrigger>(){   ComputationTrigger.MergeSave,ComputationTrigger.RemoveLesion,}"]
["是否存在疾病","√",{"$nulls":7},"√","√","√",{"$nulls":3},",ComputationTriggerList=new List<ComputationTrigger>(){ ComputationTrigger.InitialCalculation,  ComputationTrigger.CTSave,ComputationTrigger.MergeSave,ComputationTrigger.RemoveLesion,}"]
[]
[]
["备注：蓝色的地方可以不要触发计算，但是要计算的话也不影响其他地方"]

{"sheet":"Sheet1","index":1,"n_rows":27,"n_cols":7,"rows_kept":27,"merged":[[26,0,26,5]]}
[null,"计算默认值 任务刚开始的时候 自动计算","保存外层问题(例如保存脾尖)","二维页面保存病灶","融合页面保存病灶","删除病灶"]
["是否存在Pet","√（存在Pet图像赋值“是”；不存在Pet图像赋值“否”）","√","√","√","√"]
["垂直径乘积之和（SPD）","√（现在是赋值0.0）","√","√（当前访视中，靶病灶的Σ PPD）","√","√（当前访视中，靶病灶的Σ PPD）"]
["与基线相比SPD变化的百分比","√（基线是NA，随访是当前访视靶病灶SPD-基线SPD）/基线SPD）","√","√（当前访视靶病灶SPD-基线SPD）/基线SPD）","√","√（当前访视靶病灶SPD-基线SPD）/基线SPD）"]
["与基线相比脾肿大增加的百分比","√(基线是NA，随访是计算公式）","√(基线是NA，随访是计算公式）（保存脾尖、脾底时）","√","√","√"]
["与最低点相比脾脏垂直径长度的增加值","√（基线是NA，随访是计算公式）","√（基线是NA，随访是计算公式）（保存脾尖、脾底时）","√","√","√"]
["与基线相比脾垂直径变化值","√（基线是NA，随访是计算公式）","√（基线是NA，随访是计算公式）（保存脾尖、脾底时）","√","√","√"]
["脾肿垂直径最低点访视","√（基线是NA，随访是计算公式）","√（基线是NA，随访是计算公式）（保存脾尖、脾底时）","√","√","√"]
["获取脾脏评估","√（现在是NA)","√（脾脏评估算法）","√","√","√"]
["靶病灶评估","√(基线是NA，随访是靶病灶评估算法）","√","√(基线是NA，随访是靶病灶评估算法）","√(基线是NA，随访是靶病灶评估算法）","√(基线是NA，随访是靶病灶评估算法）"]
["非靶病灶评估","√（基线是NA，随访是非靶病灶评估算法）","√","√（基线是NA，随访是非靶病灶评估算法","√（基线是NA，随访是非靶病灶评估算法","√（基线是NA，随访是非靶病灶评估算法"]
["新病灶评估","√(基线是NA，随访是新病灶评估算法）","√","√","√","√"]
["计算肝脏评估","√(空）","√（计算公式）","√","√","√"]
["骨髓中是否存在局灶性 FDG亲和病灶的证据",null,"√（保存FDG-PET评估时 记录此值）"]
["CT/MRI","√（基线是NA，随访是CT/MRI评估算法）","√（基线是NA，随访是CT/MRI评估算法）","√（基线是NA，随访是CT/MRI评估算法）","√（基线是NA，随访是CT/MRI评估算法）","√（基线是NA，随访是CT/MRI评估算法）"]
["PET 5PS评分",null,"√（PET 5PS评分算法）（只有保存肝脏血池、纵隔血池时触发，保存脾尖、脾底等不可触发）",null,"√（PET 5PS评分算法）","√（PET 5PS评分算法）（只有删除带SUVmax数据的病灶时触发，删除没有SUVmax的病灶不可触发）"]
["修改PET 5PS评分备注",null,"√（重置）（只有保存肝脏血池、纵隔血池时触发，保存脾尖、脾底等不可触发）",null,"√（重置）","√（重置）（只有删除带SUVmax数据的病灶时触发，删除没有SUVmax的病灶不可触发）"]
["与基线相比摄取值变化",null,"√（只有当保存肝脏血池、纵隔血池且PET5ps评分改变时，才重新计算）",null,"√（只有当保存病灶且PET5ps评分改变时，才重新计算）","√（只有当删除带SUVmax数据的病灶且PET5ps评分改变时，才重新计算）"]
["FDG-PET 评估结果","√(基线是NA，随访如果无pet图像则为NE）","√（只有保存肝脏血池、纵隔血池时触发，保存脾尖、脾底等不可触发）","√","√（评估算法）","√（只有当删除带SUVmax数据的病灶且PET5ps评分改变时，才重新计算）或者（只有当删除带SUVmax数据的病灶时，才重新计算）","（此行可无需处理）"]
["上一次 FDG-PET 评估结果","√（基线是NA，随访取上次的值）","√","√","√","√"]
["影像学整体肿瘤评估","√","√","√","√","√"]
["SUVmax",{"$nulls":3},"√","√（只有删除带SUVmax数据的病灶时触发，删除没有SUVmax的病灶不可触发）"]
["SUVmax所在病灶",{"$nulls":3},"√","√（只有删除带SUVmax数据的病灶时触发，删除没有SUVmax的病灶不可触发）"]
["是否存在疾病","√","√","√","√","√"]
[]
[]
["备注：蓝色的地方可以不要触发计算，但是要计算的话也不影响其他地方"]

{"sheet":"Sheet2","index":2,"n_rows":0,"n_cols":0,"rows_kept":0}

{"sheet":"Sheet3","index":3,"n_rows":0,"n_cols":0,"rows_kept":0}